Department Family,Date Paid,Expense Type,Expense Area,Supplier,Transaction Number,Amount,Vat Inclusive
Crown Prosecution Service ,02/03/23,Crown Court Graduated Fee Scheme,Counter Terrorism Unit: Internal Funding,6 Kings Bench Walk- Chambers of D Fisher & D Perry,103557,"91,783.49",Y
Crown Prosecution Service ,02/03/23,Crown Court Graduated Fee Scheme,Yorks and Humbs CC Legal,Fountain Chambers,1126856 JH SJB,"32,901.20",Y
Crown Prosecution Service ,02/03/23,Crown Court Graduated Fee Scheme,Mersey Cheshire RASSO Unit,Harrington Street Chambers,1158749/SH,"62,653.20",Y
Crown Prosecution Service ,02/03/23,Crown Court Graduated Fee Scheme,Counter Terrorism Unit: Internal Funding,2 Hare Court Chambers -Chambers of Orlando Pownall,120265..,"62,218.76",Y
Crown Prosecution Service ,02/03/23,Crown Court Very High Cost Cases Full Scheme,SEOC Team 1,Foundry Chambers (9-12 Bell Yard),198779/MC,"41,103.00",Y
Crown Prosecution Service ,02/03/23,Crown Court Very High Cost Cases Full Scheme,SEOC Team 1,Foundry Chambers (9-12 Bell Yard),198982/MC,"51,666.00",Y
Crown Prosecution Service ,02/03/23,Crown Court Very High Cost Cases Full Scheme,SEOC Team 1,Foundry Chambers (9-12 Bell Yard),198982/PS,"26,472.00",Y
Crown Prosecution Service ,02/03/23,Crown Court Graduated Fee Scheme,London South Crown Court Unit,Goldsmith Chambers,219966MJW,"51,573.00",Y
Crown Prosecution Service ,02/03/23,Crown Court Graduated Fee Scheme,North West Complex Casework Unit,New Park Court Chambers Leeds,368389/RH,"32,110.20",Y
Crown Prosecution Service ,02/03/23,Recoverable VAT control,Balance Sheet,Knowledge Academy Bracknell,436053,"6,300.00",Y
Crown Prosecution Service ,02/03/23,External Training,DID DTS Change,Knowledge Academy Bracknell,436053,"29,400.00",
Crown Prosecution Service ,02/03/23,Individual Learning Accounts,DID DTS Change,Knowledge Academy Bracknell,436053,"2,100.00",
Crown Prosecution Service ,02/03/23,General Professional Services,DTS Programme Project Cost,NTT Data UK Ltd London,5026956,"135,876.00",Y
Crown Prosecution Service ,02/03/23,Other interest charges,Other Corporate Admin Payments,HM Customs and Excise,888823164GD0003638,177.93,
Crown Prosecution Service ,02/03/23,VAT liability control,Balance Sheet,HM Customs and Excise,888823164GD0003638,"27,584.00",
Crown Prosecution Service ,02/03/23,Crown Court Graduated Fee Scheme,West Midlands Complex Casework Unit,QEB Hollis Whiteman Chambers,EE 108478,"37,459.20",Y
Crown Prosecution Service ,02/03/23,Other publicity and media costs,Corporate Communication,YouGov Plc London,INV236003,"31,357.50",Y
Crown Prosecution Service ,02/03/23,Advice/PreSending Very High Cost Cases Full Scheme,RWD Midlands Wales Unit,QEB Hollis Whiteman Chambers,WB 111389 D,"56,637.00",Y
Crown Prosecution Service ,03/03/23,Crown Court Graduated Fee Scheme,Mersey Cheshire RASSO Unit,6 Kings Bench Walk- Chambers of D Fisher & D Perry,1158749 TC,"92,945.40",Y
Crown Prosecution Service ,03/03/23,Crown Court Graduated Fee Scheme,Wessex Crown Court Unit,2 Kings Bench Walk London,297915-SPKC-TRIAL,"43,947.00",Y
Crown Prosecution Service ,03/03/23,Other managed/contractor services,PF HR Business Management,Cabinet Office RM Shared Services,3826435,"242,838.00",Y
Crown Prosecution Service ,03/03/23,Apprenticeship Levy payments Permanent,Other Corporate Programme Payments,HM Revenue and Customs,948PB000021422311,"121,702.74",
Crown Prosecution Service ,03/03/23,Apprenticeship Levy payments Permanent,Other Corporate Admin Payments,HM Revenue and Customs,948PB000021422311,"7,768.26",
Crown Prosecution Service ,06/03/23,Crown Court Graduated Fee Scheme,London North Complex Casework Unit,5 Paper Buildings,117073/DHKC,"26,613.00",Y
Crown Prosecution Service ,06/03/23,Crown Court Graduated Fee Scheme,West Midlands Complex Casework Unit,36 Bedford Row,209558/DT-Trial 2,"66,591.53",Y
Crown Prosecution Service ,06/03/23,Crown Court Graduated Fee Scheme,North West Complex Casework Unit,Deans Court Chambers,469568JJD,"27,333.00",Y
Crown Prosecution Service ,06/03/23,IT services,Other IT costs,Lumen Technologies UK Ltd,632027742/1130781,"51,727.82",Y
Crown Prosecution Service ,06/03/23,Short term leases from 2 to 12 months: IT and Equipment,Print Contract,Xerox (UK) Ltd,900226450,"21,850.00",
Crown Prosecution Service ,06/03/23,Recoverable VAT control,Balance Sheet,Xerox (UK) Ltd,900226450,"4,370.00",Y
Crown Prosecution Service ,06/03/23,Crown Court Graduated Fee Scheme,West Midlands Complex Casework Unit,QEB Hollis Whiteman Chambers,AWH 108478,"67,181.10",Y
Crown Prosecution Service ,06/03/23,Recoverable VAT control,Balance Sheet,Konica Minolta Business Solutions Limited,Fleet202210,"14,390.71",Y
Crown Prosecution Service ,06/03/23,Variable lease payment expenses IT and Equipment,Print Contract,Konica Minolta Business Solutions Limited,Fleet202210,"71,953.54",
Crown Prosecution Service ,06/03/23,Recoverable VAT control,Balance Sheet,Konica Minolta Business Solutions Limited,Fleet202211,"21,124.36",Y
Crown Prosecution Service ,06/03/23,Variable lease payment expenses IT and Equipment,Print Contract,Konica Minolta Business Solutions Limited,Fleet202211,"105,621.79",
Crown Prosecution Service ,06/03/23,Recoverable VAT control,Balance Sheet,Konica Minolta Business Solutions Limited,Fleet202212,"13,160.55",Y
Crown Prosecution Service ,06/03/23,Variable lease payment expenses IT and Equipment,Print Contract,Konica Minolta Business Solutions Limited,Fleet202212,"65,802.76",
Crown Prosecution Service ,06/03/23,Variable lease payment expenses IT and Equipment,Print Contract,Konica Minolta Business Solutions Limited,Fleet202301,"88,605.61",
Crown Prosecution Service ,06/03/23,Recoverable VAT control,Balance Sheet,Konica Minolta Business Solutions Limited,Fleet202301,"17,721.12",Y
Crown Prosecution Service ,06/03/23,Recoverable VAT control,Balance Sheet,CGI IT UK Ltd,GB014100025,"90,083.00",Y
Crown Prosecution Service ,06/03/23,Intangibles asset purchase clearing CMS,DTS ICT Capital Expenditure,CGI IT UK Ltd,GB014100025,"450,415.00",
Crown Prosecution Service ,06/03/23,Recoverable VAT control,Balance Sheet,CGI IT UK Ltd,GB014100082,"6,582.62",Y
Crown Prosecution Service ,06/03/23,Intangibles asset purchase clearing CMS,DTS ICT Capital Expenditure,CGI IT UK Ltd,GB014100082,"32,913.10",
Crown Prosecution Service ,06/03/23,IT services,DTS Programme Project Cost,CGI IT UK Ltd,GB014100085,"187,649.96",Y
Crown Prosecution Service ,07/03/23,IT services,ICT Network Services,Vodafone Ltd formerly Cable and Wireless Milton Keynes,386368,"168,139.57",Y
Crown Prosecution Service ,07/03/23,IT services,ICT Network Services,Vodafone Ltd formerly Cable and Wireless Milton Keynes,386378,"64,653.53",
Crown Prosecution Service ,07/03/23,Recoverable VAT control,Balance Sheet,Vodafone Ltd formerly Cable and Wireless Milton Keynes,386378,"12,930.71",Y
Crown Prosecution Service ,07/03/23,IT services,ICT Network Services,Vodafone Ltd formerly Cable and Wireless Milton Keynes,386379,"60,090.80",Y
Crown Prosecution Service ,07/03/23,Data Communications,ICT Network Services,Vodafone Ltd formerly Cable and Wireless Milton Keynes,386382,"81,755.42",Y
Crown Prosecution Service ,07/03/23,IT services,Estate and FM: Programme,Vodafone Ltd formerly Cable and Wireless Milton Keynes,4028828,"64,355.68",Y
Crown Prosecution Service ,07/03/23,External legal advice - HR casework,PF Litigation,Government Legal Department,522612,"32,218.15",Y
Crown Prosecution Service ,07/03/23,Variable lease payment expenses IT and Equipment,Print Contract,Konica Minolta Business Solutions Limited,Bulk202211,"159,627.02",
Crown Prosecution Service ,07/03/23,Recoverable VAT control,Balance Sheet,Konica Minolta Business Solutions Limited,Bulk202211,"31,925.40",Y
Crown Prosecution Service ,07/03/23,Variable lease payment expenses IT and Equipment,Print Contract,Konica Minolta Business Solutions Limited,Bulk202301,"131,391.77",
Crown Prosecution Service ,07/03/23,Recoverable VAT control,Balance Sheet,Konica Minolta Business Solutions Limited,Bulk202301,"26,278.35",Y
Crown Prosecution Service ,07/03/23,UK National rail travel,DID Central Leadership Team,Clarity Travel Management,CPSHQ190223,"1,367.45",
Crown Prosecution Service ,07/03/23,UK National rail travel,Central Legal Training Team,Clarity Travel Management,CPSHQ190223,735.80,
Crown Prosecution Service ,07/03/23,UK National rail travel,DTUS,Clarity Travel Management,CPSHQ190223,329.50,
Crown Prosecution Service ,07/03/23,UK National rail travel,Corporate Communication,Clarity Travel Management,CPSHQ190223,840.10,
Crown Prosecution Service ,07/03/23,UK National rail travel,Central Operational Training,Clarity Travel Management,CPSHQ190223,89.50,
Crown Prosecution Service ,07/03/23,UK National rail travel,PF Learning and Development General,Clarity Travel Management,CPSHQ190223,"2,217.60",
Crown Prosecution Service ,07/03/23,UK National rail travel,CFO Estates,Clarity Travel Management,CPSHQ190223,154.30,
Crown Prosecution Service ,07/03/23,UK National rail travel,PF People and Business Change,Clarity Travel Management,CPSHQ190223,"1,557.55",
Crown Prosecution Service ,07/03/23,UK National rail travel,CFO Commercial,Clarity Travel Management,CPSHQ190223,88.20,
Crown Prosecution Service ,07/03/23,UK National rail travel,PF Resourcing,Clarity Travel Management,CPSHQ190223,"1,639.50",
Crown Prosecution Service ,07/03/23,UK National rail travel,Compliance and Assurance,Clarity Travel Management,CPSHQ190223,465.20,
Crown Prosecution Service ,07/03/23,UK National rail travel,Operational Business Support,Clarity Travel Management,CPSHQ190223,"3,200.90",
Crown Prosecution Service ,07/03/23,UK National rail travel,DID DTS Technology,Clarity Travel Management,CPSHQ190223,"1,237.40",
Crown Prosecution Service ,07/03/23,UK National rail travel,PF HR Business Partnering,Clarity Travel Management,CPSHQ190223,"1,064.40",
Crown Prosecution Service ,07/03/23,UK National rail travel,PF MAER and Employee Relations,Clarity Travel Management,CPSHQ190223,98.00,
Crown Prosecution Service ,07/03/23,UK National rail travel,PF Analytics and Workforce Plan,Clarity Travel Management,CPSHQ190223,839.70,
Crown Prosecution Service ,07/03/23,UK National rail travel,Chief Finance Officer,Clarity Travel Management,CPSHQ190223,"1,013.20",
Crown Prosecution Service ,07/03/23,UK National rail travel,CFO Strategic Financial Planning,Clarity Travel Management,CPSHQ190223,26.20,
Crown Prosecution Service ,07/03/23,UK National rail travel,DID Operational Process,Clarity Travel Management,CPSHQ190223,372.00,
Crown Prosecution Service ,07/03/23,UK National rail travel,CFO Fin System Change and Costings,Clarity Travel Management,CPSHQ190223,337.20,
Crown Prosecution Service ,07/03/23,UK National rail travel,CFO Financial Reporting,Clarity Travel Management,CPSHQ190223,285.50,
Crown Prosecution Service ,07/03/23,UK National rail travel,Operational Performance,Clarity Travel Management,CPSHQ190223,960.40,
Crown Prosecution Service ,07/03/23,UK Hotels,DID DTS Change,Clarity Travel Management,CPSHQ190223,89.00,
Crown Prosecution Service ,07/03/23,Overseas Hotels,DID DTS Change,Clarity Travel Management,CPSHQ190223,243.80,Y
Crown Prosecution Service ,07/03/23,UK Hotels,Operational Change,Clarity Travel Management,CPSHQ190223,"1,531.26",Y
Crown Prosecution Service ,07/03/23,UK Hotels,DID Operational Process,Clarity Travel Management,CPSHQ190223,147.12,Y
Crown Prosecution Service ,07/03/23,UK Hotels,Operational Performance,Clarity Travel Management,CPSHQ190223,144.11,Y
Crown Prosecution Service ,07/03/23,UK National rail travel,Strategy and Policy,Clarity Travel Management,CPSHQ190223,"3,657.82",Y
Crown Prosecution Service ,07/03/23,UK Hotels,Central Legal Training Team,Clarity Travel Management,CPSHQ190223,"1,573.30",Y
Crown Prosecution Service ,07/03/23,UK Hotels,CFO Fin System Change and Costings,Clarity Travel Management,CPSHQ190223,112.68,Y
Crown Prosecution Service ,07/03/23,UK Hotels,Permanent Transfer Costs,Clarity Travel Management,CPSHQ190223,710.21,Y
Crown Prosecution Service ,07/03/23,UK Hotels,Strategy and Policy,Clarity Travel Management,CPSHQ190223,268.21,Y
Crown Prosecution Service ,07/03/23,UK Hotels,PF HR Business Management,Clarity Travel Management,CPSHQ190223,144.11,Y
Crown Prosecution Service ,07/03/23,UK Hotels,Court Business Unit,Clarity Travel Management,CPSHQ190223,180.74,Y
Crown Prosecution Service ,07/03/23,UK Hotels,Director of Legal Services,Clarity Travel Management,CPSHQ190223,144.11,Y
Crown Prosecution Service ,07/03/23,UK Hotels,Operational Business Support,Clarity Travel Management,CPSHQ190223,199.15,Y
Crown Prosecution Service ,07/03/23,UK Hotels,Corporate Communication,Clarity Travel Management,CPSHQ190223,144.11,Y
Crown Prosecution Service ,07/03/23,UK Hotels,DID DTS Technology,Clarity Travel Management,CPSHQ190223,"1,401.56",Y
Crown Prosecution Service ,07/03/23,UK Hotels,Central Operational Training,Clarity Travel Management,CPSHQ190223,118.09,Y
Crown Prosecution Service ,07/03/23,UK Hotels,DID Central Leadership Team,Clarity Travel Management,CPSHQ190223,500.79,Y
Crown Prosecution Service ,07/03/23,UK Hotels,DID Security and Information,Clarity Travel Management,CPSHQ190223,641.17,Y
Crown Prosecution Service ,07/03/23,UK Hotels,DID DTS Change,Clarity Travel Management,CPSHQ190223,660.67,Y
Crown Prosecution Service ,07/03/23,UK Hotels,PF People and Business Change,Clarity Travel Management,CPSHQ190223,549.91,Y
Crown Prosecution Service ,07/03/23,UK National rail travel,PF HR Systems and Information,Clarity Travel Management,CPSHQ190223,547.80,
Crown Prosecution Service ,07/03/23,UK National rail travel,Operational Change,Clarity Travel Management,CPSHQ190223,514.80,
Crown Prosecution Service ,07/03/23,UK National rail travel,Private Office,Clarity Travel Management,CPSHQ190223,331.40,
Crown Prosecution Service ,07/03/23,UK National rail travel,Permanent Transfer Costs,Clarity Travel Management,CPSHQ190223,169.10,
Crown Prosecution Service ,07/03/23,UK National rail travel,DID Security and Information,Clarity Travel Management,CPSHQ190223,"1,564.90",
Crown Prosecution Service ,07/03/23,UK National rail travel,PF HR Operations,Clarity Travel Management,CPSHQ190223,"1,848.20",
Crown Prosecution Service ,07/03/23,UK National rail travel,PF HR Business Management,Clarity Travel Management,CPSHQ190223,312.80,
Crown Prosecution Service ,07/03/23,UK National rail travel,Permanent Transfer Costs,Clarity Travel Management,CPSHQ260223,318.20,
Crown Prosecution Service ,07/03/23,UK National rail travel,Operational Business Support,Clarity Travel Management,CPSHQ260223,"3,114.40",
Crown Prosecution Service ,07/03/23,UK National rail travel,CFO Fin System Change and Costings,Clarity Travel Management,CPSHQ260223,"1,792.20",
Crown Prosecution Service ,07/03/23,UK National rail travel,PF People and Business Change,Clarity Travel Management,CPSHQ260223,"2,541.90",
Crown Prosecution Service ,07/03/23,UK National rail travel,PF Learning and Development General,Clarity Travel Management,CPSHQ260223,149.70,
Crown Prosecution Service ,07/03/23,UK National rail travel,Private Office,Clarity Travel Management,CPSHQ260223,897.20,
Crown Prosecution Service ,07/03/23,UK National rail travel,Compliance and Assurance,Clarity Travel Management,CPSHQ260223,21.60,
Crown Prosecution Service ,07/03/23,UK National rail travel,Court Business Unit,Clarity Travel Management,CPSHQ260223,48.00,
Crown Prosecution Service ,07/03/23,UK National rail travel,Operational Performance,Clarity Travel Management,CPSHQ260223,162.30,
Crown Prosecution Service ,07/03/23,UK National rail travel,DID Central Leadership Team,Clarity Travel Management,CPSHQ260223,739.30,
Crown Prosecution Service ,07/03/23,UK National rail travel,CFO Estates,Clarity Travel Management,CPSHQ260223,278.50,
Crown Prosecution Service ,07/03/23,UK National rail travel,CFO Finance Operations,Clarity Travel Management,CPSHQ260223,565.30,
Crown Prosecution Service ,07/03/23,UK National rail travel,Central Legal Training Team,Clarity Travel Management,CPSHQ260223,"2,418.10",
Crown Prosecution Service ,07/03/23,UK National rail travel,DID DTS Technology,Clarity Travel Management,CPSHQ260223,892.50,
Crown Prosecution Service ,07/03/23,UK National rail travel,Central Operational Training,Clarity Travel Management,CPSHQ260223,172.65,
Crown Prosecution Service ,07/03/23,UK National rail travel,DID Security and Information,Clarity Travel Management,CPSHQ260223,800.60,
Crown Prosecution Service ,07/03/23,UK National rail travel,DID DTS Change,Clarity Travel Management,CPSHQ260223,"1,775.75",
Crown Prosecution Service ,07/03/23,UK National rail travel,CFO Strategic Financial Planning,Clarity Travel Management,CPSHQ260223,322.70,
Crown Prosecution Service ,07/03/23,Overseas Air travel,Private Office,Clarity Travel Management,CPSHQ260223,545.16,
Crown Prosecution Service ,07/03/23,UK National rail travel,Director of Legal Services,Clarity Travel Management,CPSHQ260223,543.20,
Crown Prosecution Service ,07/03/23,UK National rail travel,PF Analytics and Workforce Plan,Clarity Travel Management,CPSHQ260223,956.70,
Crown Prosecution Service ,07/03/23,UK National rail travel,PF HR Operations,Clarity Travel Management,CPSHQ260223,116.30,
Crown Prosecution Service ,07/03/23,UK National rail travel,Chief Finance Officer,Clarity Travel Management,CPSHQ260223,346.60,
Crown Prosecution Service ,07/03/23,UK National rail travel,PF Resourcing,Clarity Travel Management,CPSHQ260223,751.20,
Crown Prosecution Service ,07/03/23,UK Hotels,CFO Commercial,Clarity Travel Management,CPSHQ260223,471.00,Y
Crown Prosecution Service ,07/03/23,UK Hotels,DID Central Leadership Team,Clarity Travel Management,CPSHQ260223,256.00,Y
Crown Prosecution Service ,07/03/23,UK Hotels,Central Legal Training Team,Clarity Travel Management,CPSHQ260223,895.03,Y
Crown Prosecution Service ,07/03/23,UK Hotels,PF HR Business Partnering,Clarity Travel Management,CPSHQ260223,330.00,Y
Crown Prosecution Service ,07/03/23,Conference Organisation,PF MAER and Employee Relations,Clarity Travel Management,CPSHQ260223,"2,035.74",Y
Crown Prosecution Service ,07/03/23,UK Hotels,Private Office,Clarity Travel Management,CPSHQ260223,273.00,Y
Crown Prosecution Service ,07/03/23,UK Hotels,Operational Performance,Clarity Travel Management,CPSHQ260223,262.70,Y
Crown Prosecution Service ,07/03/23,UK Hotels,Compliance and Assurance,Clarity Travel Management,CPSHQ260223,74.00,Y
Crown Prosecution Service ,07/03/23,UK Hotels,CFO Estates,Clarity Travel Management,CPSHQ260223,335.00,Y
Crown Prosecution Service ,07/03/23,UK Hotels,Permanent Transfer Costs,Clarity Travel Management,CPSHQ260223,648.00,Y
Crown Prosecution Service ,07/03/23,UK Hotels,Director of Legal Services,Clarity Travel Management,CPSHQ260223,144.00,Y
Crown Prosecution Service ,07/03/23,UK Hotels,Chief Finance Officer,Clarity Travel Management,CPSHQ260223,250.90,Y
Crown Prosecution Service ,07/03/23,UK Hotels,DID DTS Change,Clarity Travel Management,CPSHQ260223,261.50,Y
Crown Prosecution Service ,07/03/23,UK Hotels,PF HR Operations,Clarity Travel Management,CPSHQ260223,159.74,Y
Crown Prosecution Service ,07/03/23,UK Hotels,DID Operational Process,Clarity Travel Management,CPSHQ260223,360.16,Y
Crown Prosecution Service ,07/03/23,UK Hotels,PF People and Business Change,Clarity Travel Management,CPSHQ260223,426.10,Y
Crown Prosecution Service ,07/03/23,UK Hotels,Central Operational Training,Clarity Travel Management,CPSHQ260223,339.91,Y
Crown Prosecution Service ,07/03/23,UK Hotels,Press Office,Clarity Travel Management,CPSHQ260223,411.00,Y
Crown Prosecution Service ,07/03/23,UK Hotels,Strategy and Policy,Clarity Travel Management,CPSHQ260223,843.43,Y
Crown Prosecution Service ,07/03/23,UK Hotels,DID Security and Information,Clarity Travel Management,CPSHQ260223,198.00,Y
Crown Prosecution Service ,07/03/23,UK Hotels,Corporate Communication,Clarity Travel Management,CPSHQ260223,357.50,Y
Crown Prosecution Service ,07/03/23,UK Hotels,Operational Change,Clarity Travel Management,CPSHQ260223,661.30,Y
Crown Prosecution Service ,07/03/23,UK Hotels,DID DTS Technology,Clarity Travel Management,CPSHQ260223,"1,752.95",Y
Crown Prosecution Service ,07/03/23,UK Hotels,PF Learning and Development General,Clarity Travel Management,CPSHQ260223,366.96,Y
Crown Prosecution Service ,07/03/23,UK Hotels,Operational Business Support,Clarity Travel Management,CPSHQ260223,169.50,Y
Crown Prosecution Service ,07/03/23,UK National rail travel,Operational Change,Clarity Travel Management,CPSHQ260223,482.90,
Crown Prosecution Service ,07/03/23,UK National rail travel,Strategy and Policy,Clarity Travel Management,CPSHQ260223,"2,376.20",
Crown Prosecution Service ,07/03/23,UK National rail travel,DID Operational Process,Clarity Travel Management,CPSHQ260223,656.40,
Crown Prosecution Service ,07/03/23,UK National rail travel,PF HR Business Partnering,Clarity Travel Management,CPSHQ260223,"1,282.50",
Crown Prosecution Service ,08/03/23,Recoverable VAT control,Balance Sheet,Vodafone Ltd formerly Cable and Wireless Milton Keynes,386377,"25,387.01",Y
Crown Prosecution Service ,08/03/23,IT services,ICT Network Services,Vodafone Ltd formerly Cable and Wireless Milton Keynes,386377,"126,935.06",
Crown Prosecution Service ,08/03/23,Recoverable VAT control,Balance Sheet,Vodafone Ltd formerly Cable and Wireless Milton Keynes,386384,"9,388.07",Y
Crown Prosecution Service ,08/03/23,IT services,ICT Network Services,Vodafone Ltd formerly Cable and Wireless Milton Keynes,386384,"46,940.34",
Crown Prosecution Service ,08/03/23,IT Consultancy Advice,PF Operational HR Costs,Oracle Corporation UK Ltd,460089861,"78,036.00",Y
Crown Prosecution Service ,08/03/23,IT services,DTS Programme Project Cost,FlyForm LTD Cardiff,INV-11258,"24,395.99",
Crown Prosecution Service ,08/03/23,Recoverable VAT control,Balance Sheet,FlyForm LTD Cardiff,INV-11258,"4,879.21",Y
Crown Prosecution Service ,08/03/23,IT services,DTS Programme Project Cost,FlyForm LTD Cardiff,INV-11266,"66,067.68",Y
Crown Prosecution Service ,08/03/23,Recoverable VAT control,Balance Sheet,AVR Transcription Ltd Bolton,NOV22-CPS-36108,"11,342.68",Y
Crown Prosecution Service ,08/03/23,Transcriptions and Translation,Other Corporate Programme Payments,AVR Transcription Ltd Bolton,NOV22-CPS-36108,"56,713.38",
Crown Prosecution Service ,08/03/23,Recoverable VAT control,Balance Sheet,AVR Transcription Ltd Bolton,SI-36143,"10,050.36",Y
Crown Prosecution Service ,08/03/23,Transcriptions and Translation,Other Corporate Programme Payments,AVR Transcription Ltd Bolton,SI-36143,"50,251.83",
Crown Prosecution Service ,09/03/23,Crown Court Very High Cost Cases Full Scheme,North West Complex Casework Unit,6 Kings Bench Walk- Chambers of D Fisher & D Perry,1167618/S16,"35,100.00",Y
Crown Prosecution Service ,09/03/23,Financial Consultancy Advice,Chief Finance Officer,Reed Talent Solutions London,R41050087M,"57,145.54",Y
Crown Prosecution Service ,09/03/23,General Professional Services,IAP Conference,Bray Leino Ltd Devon,SI0037694BLE,"29,943.98",
Crown Prosecution Service ,09/03/23,Recoverable VAT control,Balance Sheet,Bray Leino Ltd Devon,SI0037694BLE,"5,988.80",Y
Crown Prosecution Service ,09/03/23,Crown Court Graduated Fee Scheme,West Midlands Crown Court Unit,Citadel Chambers,TH/689542/,"43,541.64",Y
Crown Prosecution Service ,10/03/23,Crown Court Graduated Fee Scheme,London North Crown Court Unit,23 Essex Street Chambers,196519-CA-TRIAL ONLY,"26,869.80",Y
Crown Prosecution Service ,10/03/23,Crown Court Graduated Fee Scheme,North West Crown Court Hub,Lincoln House Chambers,249828 PDW TR,"76,706.64",Y
Crown Prosecution Service ,10/03/23,Crown Court Graduated Fee Scheme,North West Crown Court Hub,Lincoln House Chambers,249828 RC TR,"37,606.56",Y
Crown Prosecution Service ,10/03/23,Crown Court Graduated Fee Scheme,RWD Midlands Wales Unit,30 Park Place Chambers,630937-1/JCO,"38,312.64",
Crown Prosecution Service ,10/03/23,Crown Court Graduated Fee Scheme,East of England Complex Casework Unit,QEB Hollis Whiteman Chambers,DSP 110480,"25,191.60",Y
Crown Prosecution Service ,10/03/23,IT non capital software licences,Legal Reference and ICT Licenses,ICS.AI Ltd Basingstoke,INV-701,"279,072.00",Y
Crown Prosecution Service ,10/03/23,IT non capital equipment and consumables,DTS Programme Project Cost,ACS Systems UK Limited Northampton,INV427648,"2,610,343.20",Y
Crown Prosecution Service ,10/03/23,IT non capital software licences,Legal Reference and ICT Licenses,CDW Limited London,PSINV03892085,"41,043.22",Y
Crown Prosecution Service ,13/03/23,National non domestic rates,Estate and FM: Programme,Government Property Agency London,00000001/16573,"4,928.00",
Crown Prosecution Service ,13/03/23,Landlord service charge,Estate and FM: Programme,Government Property Agency London,00000001/16573,"21,933.47",
Crown Prosecution Service ,13/03/23,National non domestic rates,Estate and FM: Programme,Government Property Agency London,00000001/20331,"4,928.00",
Crown Prosecution Service ,13/03/23,Property management fees,Estate and FM: Programme,Government Property Agency London,00000001/20331,"6,643.20",Y
Crown Prosecution Service ,13/03/23,Short term leases from 2 to 12 months: Property,Estate and FM: Programme,Government Property Agency London,00000001/20331,"24,862.65",
Crown Prosecution Service ,13/03/23,Landlord service charge,Estate and FM: Programme,Government Property Agency London,00000001/20331,"21,933.47",
Crown Prosecution Service ,13/03/23,Property management fees,Estate and FM: Programme,Government Property Agency London,00000001/22253,"6,643.20",Y
Crown Prosecution Service ,13/03/23,National non domestic rates,Estate and FM: Programme,Government Property Agency London,00000001/22253,"4,928.00",
Crown Prosecution Service ,13/03/23,Short term leases from 2 to 12 months: Property,Estate and FM: Programme,Government Property Agency London,00000001/22253,"24,862.65",
Crown Prosecution Service ,13/03/23,Landlord service charge,Estate and FM: Programme,Government Property Agency London,00000001/22253,"21,933.47",
Crown Prosecution Service ,13/03/23,Reactive Maintenance,Estate and FM: Programme,Government Property Agency London,00000001/24265,"26,044.12",
Crown Prosecution Service ,13/03/23,Crown Court Graduated Fee Scheme,London North Complex Casework Unit,6 Kings Bench Walk- Chambers of D Fisher & D Perry,103151 GP,"42,283.20",Y
Crown Prosecution Service ,13/03/23,Crown Court Graduated Fee Scheme,London North Complex Casework Unit,2 Hare Court Chambers -Chambers of Orlando Pownall,121480..,"51,372.24",Y
Crown Prosecution Service ,13/03/23,Crown Court Graduated Fee Scheme,North West Complex Casework Unit,New Park Court Chambers Leeds,368389/NPKC,"57,410.58",Y
Crown Prosecution Service ,13/03/23,Crown Court Very High Cost Cases Full Scheme,Cymru Wales Complex Casework Unit,Apex Chambers,45880-7/RR,"27,495.00",Y
Crown Prosecution Service ,13/03/23,Crown Court Very High Cost Cases Full Scheme,Cymru Wales Complex Casework Unit,Apex Chambers,45880-8/CLR,"44,916.00",Y
Crown Prosecution Service ,13/03/23,Recoverable VAT control,Balance Sheet,Oracle Corporation UK Ltd,460090153,"60,223.94",Y
Crown Prosecution Service ,13/03/23,IT non capital software licences,Legal Reference and ICT Licenses,Oracle Corporation UK Ltd,460090153,"301,119.68",
Crown Prosecution Service ,13/03/23,Crown Court Very High Cost Cases Full Scheme,RWD North Unit,Exchange Chambers Leeds ,535033 - AHQC JAN23,"35,598.16",Y
Crown Prosecution Service ,13/03/23,Crown Court Graduated Fee Scheme,RWD Midlands Wales Unit,5 SAH Services Ltd,630937-1/MC.30ParkPl,"79,155.84",Y
Crown Prosecution Service ,13/03/23,IT services,DTS Programme Project Cost,CGI IT UK Ltd,GB014100499,"87,921.18",Y
Crown Prosecution Service ,13/03/23,Recoverable VAT control,Balance Sheet,CGI IT UK Ltd,GB014100517,"212,472.79",Y
Crown Prosecution Service ,13/03/23,IT services,Apps and Hosting Contract,CGI IT UK Ltd,GB014100517,"1,062,363.97",
Crown Prosecution Service ,13/03/23,IT services,DTS Programme Project Cost,CGI IT UK Ltd,GB014100647,"27,757.88",Y
Crown Prosecution Service ,13/03/23,IT non capital software licences,Legal Reference and ICT Licenses,CGI IT UK Ltd,GB014100865,"164,408.09",Y
Crown Prosecution Service ,13/03/23,IT services,End User Computing Contract,ACS Systems UK Limited Northampton,INV425508,"84,135.58",Y
Crown Prosecution Service ,13/03/23,IT services,End User Computing Contract,ACS Systems UK Limited Northampton,INV425509,"54,613.81",Y
Crown Prosecution Service ,13/03/23,Financial Consultancy Advice,Chief Finance Officer,Reed Talent Solutions London,R41048913M,"62,135.70",Y
Crown Prosecution Service ,14/03/23,Crown Court Very High Cost Cases Full Scheme,RWD North Unit,Foundry Chambers (9-12 Bell Yard),199031/JWA,"36,838.31",Y
Crown Prosecution Service ,14/03/23,Variable lease payment expenses IT and Equipment,Print Contract,Konica Minolta Business Solutions Limited,Bulk202212,"94,587.06",
Crown Prosecution Service ,14/03/23,Recoverable VAT control,Balance Sheet,Konica Minolta Business Solutions Limited,Bulk202212,"18,917.41",Y
Crown Prosecution Service ,14/03/23,UK National rail travel,PF Learning and Development General,Clarity Travel Management,CPSHQ050323,"1,270.40",
Crown Prosecution Service ,14/03/23,UK National rail travel,Permanent Transfer Costs,Clarity Travel Management,CPSHQ050323,875.20,
Crown Prosecution Service ,14/03/23,UK National rail travel,DID Security and Information,Clarity Travel Management,CPSHQ050323,"2,873.70",
Crown Prosecution Service ,14/03/23,UK National rail travel,Corporate Communication,Clarity Travel Management,CPSHQ050323,"1,769.60",
Crown Prosecution Service ,14/03/23,UK National rail travel,Central Operational Training,Clarity Travel Management,CPSHQ050323,751.75,
Crown Prosecution Service ,14/03/23,UK National rail travel,PF Resourcing,Clarity Travel Management,CPSHQ050323,"2,033.20",
Crown Prosecution Service ,14/03/23,UK National rail travel,Operational Business Support,Clarity Travel Management,CPSHQ050323,"5,147.40",
Crown Prosecution Service ,14/03/23,UK National rail travel,Press Office,Clarity Travel Management,CPSHQ050323,389.80,
Crown Prosecution Service ,14/03/23,UK National rail travel,PF HR Systems and Information,Clarity Travel Management,CPSHQ050323,618.10,
Crown Prosecution Service ,14/03/23,UK Air travel,Strategy and Policy,Clarity Travel Management,CPSHQ050323,195.50,
Crown Prosecution Service ,14/03/23,UK National rail travel,PF Analytics and Workforce Plan,Clarity Travel Management,CPSHQ050323,438.60,
Crown Prosecution Service ,14/03/23,UK National rail travel,PF HR Operations,Clarity Travel Management,CPSHQ050323,"1,222.00",
Crown Prosecution Service ,14/03/23,UK Air travel,Director of Legal Services,Clarity Travel Management,CPSHQ050323,71.48,
Crown Prosecution Service ,14/03/23,UK National rail travel,DID DTS Technology,Clarity Travel Management,CPSHQ050323,631.00,
Crown Prosecution Service ,14/03/23,UK National rail travel,CFO Strategic Financial Planning,Clarity Travel Management,CPSHQ050323,233.80,
Crown Prosecution Service ,14/03/23,UK National rail travel,Strategy and Policy,Clarity Travel Management,CPSHQ050323,"1,817.05",
Crown Prosecution Service ,14/03/23,UK National rail travel,PF HR Business Partnering,Clarity Travel Management,CPSHQ050323,571.50,
Crown Prosecution Service ,14/03/23,UK National rail travel,Director of Legal Services,Clarity Travel Management,CPSHQ050323,"1,266.60",
Crown Prosecution Service ,14/03/23,UK National rail travel,DID Operational Process,Clarity Travel Management,CPSHQ050323,746.80,
Crown Prosecution Service ,14/03/23,UK National rail travel,PF MAER and Employee Relations,Clarity Travel Management,CPSHQ050323,36.20,
Crown Prosecution Service ,14/03/23,UK National rail travel,CFO Commercial,Clarity Travel Management,CPSHQ050323,95.80,
Crown Prosecution Service ,14/03/23,UK National rail travel,Court Business Unit,Clarity Travel Management,CPSHQ050323,368.70,
Crown Prosecution Service ,14/03/23,UK National rail travel,Operational Change,Clarity Travel Management,CPSHQ050323,999.55,
Crown Prosecution Service ,14/03/23,UK National rail travel,Head of Communication,Clarity Travel Management,CPSHQ050323,62.30,
Crown Prosecution Service ,14/03/23,UK National rail travel,Central Legal Training Team,Clarity Travel Management,CPSHQ050323,"1,321.30",
Crown Prosecution Service ,14/03/23,UK Hotels,DID DTS Change,Clarity Travel Management,CPSHQ050323,"3,481.53",Y
Crown Prosecution Service ,14/03/23,UK Hotels,PF MAER and Employee Relations,Clarity Travel Management,CPSHQ050323,196.80,Y
Crown Prosecution Service ,14/03/23,UK Hotels,PF Resourcing,Clarity Travel Management,CPSHQ050323,340.00,Y
Crown Prosecution Service ,14/03/23,UK Hotels,Operational Change,Clarity Travel Management,CPSHQ050323,"2,114.78",Y
Crown Prosecution Service ,14/03/23,UK Hotels,DID Operational Process,Clarity Travel Management,CPSHQ050323,892.44,Y
Crown Prosecution Service ,14/03/23,UK Hotels,PF People and Business Change,Clarity Travel Management,CPSHQ050323,755.99,Y
Crown Prosecution Service ,14/03/23,UK Hotels,CFO Commercial,Clarity Travel Management,CPSHQ050323,150.99,Y
Crown Prosecution Service ,14/03/23,Overseas Air travel,Private Office,Clarity Travel Management,CPSHQ050323,50.75,Y
Crown Prosecution Service ,14/03/23,UK Hotels,Strategy and Policy,Clarity Travel Management,CPSHQ050323,591.16,Y
Crown Prosecution Service ,14/03/23,UK Hotels,DID Central Leadership Team,Clarity Travel Management,CPSHQ050323,646.57,Y
Crown Prosecution Service ,14/03/23,UK Hotels,PF HR Business Management,Clarity Travel Management,CPSHQ050323,58.79,Y
Crown Prosecution Service ,14/03/23,UK Hotels,Press Office,Clarity Travel Management,CPSHQ050323,56.30,Y
Crown Prosecution Service ,14/03/23,UK Hotels,PF Analytics and Workforce Plan,Clarity Travel Management,CPSHQ050323,"2,003.46",Y
Crown Prosecution Service ,14/03/23,UK Hotels,CFO Strategic Financial Planning,Clarity Travel Management,CPSHQ050323,80.00,Y
Crown Prosecution Service ,14/03/23,UK Hotels,CFO Fin System Change and Costings,Clarity Travel Management,CPSHQ050323,"1,580.94",Y
Crown Prosecution Service ,14/03/23,UK National rail travel,Private Office,Clarity Travel Management,CPSHQ050323,243.10,Y
Crown Prosecution Service ,14/03/23,UK Hotels,PF HR Operations,Clarity Travel Management,CPSHQ050323,67.00,Y
Crown Prosecution Service ,14/03/23,UK Hotels,DID Security and Information,Clarity Travel Management,CPSHQ050323,"1,362.88",Y
Crown Prosecution Service ,14/03/23,UK Hotels,Permanent Transfer Costs,Clarity Travel Management,CPSHQ050323,915.97,Y
Crown Prosecution Service ,14/03/23,UK National rail travel,DID DTS Change,Clarity Travel Management,CPSHQ050323,"1,009.15",Y
Crown Prosecution Service ,14/03/23,UK Hotels,Central Legal Training Team,Clarity Travel Management,CPSHQ050323,831.66,Y
Crown Prosecution Service ,14/03/23,UK Hotels,Central Operational Training,Clarity Travel Management,CPSHQ050323,417.00,Y
Crown Prosecution Service ,14/03/23,UK Hotels,CFO Finance Operations,Clarity Travel Management,CPSHQ050323,132.99,Y
Crown Prosecution Service ,14/03/23,UK Hotels,PF Learning and Development General,Clarity Travel Management,CPSHQ050323,"1,459.96",Y
Crown Prosecution Service ,14/03/23,UK Hotels,Private Office,Clarity Travel Management,CPSHQ050323,478.74,Y
Crown Prosecution Service ,14/03/23,UK Hotels,DID DTS Technology,Clarity Travel Management,CPSHQ050323,"1,674.72",Y
Crown Prosecution Service ,14/03/23,UK National rail travel,PF Litigation,Clarity Travel Management,CPSHQ050323,354.90,
Crown Prosecution Service ,14/03/23,UK National rail travel,DID Central Leadership Team,Clarity Travel Management,CPSHQ050323,"1,159.90",
Crown Prosecution Service ,14/03/23,UK National rail travel,Operational Performance,Clarity Travel Management,CPSHQ050323,715.70,
Crown Prosecution Service ,14/03/23,UK National rail travel,PF People and Business Change,Clarity Travel Management,CPSHQ050323,20.00,
Crown Prosecution Service ,14/03/23,UK National rail travel,CFO Estates,Clarity Travel Management,CPSHQ050323,215.50,
Crown Prosecution Service ,14/03/23,UK Air travel,DID Operational Process,Clarity Travel Management,CPSHQ120323,389.68,
Crown Prosecution Service ,14/03/23,UK National rail travel,PF Resourcing,Clarity Travel Management,CPSHQ120323,346.80,
Crown Prosecution Service ,14/03/23,UK National rail travel,PF HR Business Partnering,Clarity Travel Management,CPSHQ120323,"1,654.60",
Crown Prosecution Service ,14/03/23,UK Air travel,Chief Finance Officer,Clarity Travel Management,CPSHQ120323,116.00,
Crown Prosecution Service ,14/03/23,UK National rail travel,DID Central Leadership Team,Clarity Travel Management,CPSHQ120323,"2,199.40",
Crown Prosecution Service ,14/03/23,UK National rail travel,Operational Change,Clarity Travel Management,CPSHQ120323,204.20,
Crown Prosecution Service ,14/03/23,UK National rail travel,Director of Legal Services,Clarity Travel Management,CPSHQ120323,527.70,
Crown Prosecution Service ,14/03/23,UK National rail travel,Press Office,Clarity Travel Management,CPSHQ120323,210.00,
Crown Prosecution Service ,14/03/23,UK National rail travel,Operational Business Support,Clarity Travel Management,CPSHQ120323,"2,669.90",
Crown Prosecution Service ,14/03/23,UK National rail travel,DID DTS Technology,Clarity Travel Management,CPSHQ120323,"1,366.40",
Crown Prosecution Service ,14/03/23,UK National rail travel,PF People and Business Change,Clarity Travel Management,CPSHQ120323,"2,339.60",
Crown Prosecution Service ,14/03/23,UK National rail travel,DID Security and Information,Clarity Travel Management,CPSHQ120323,"4,409.95",
Crown Prosecution Service ,14/03/23,UK National rail travel,PF Leadership and Talent Management,Clarity Travel Management,CPSHQ120323,346.80,
Crown Prosecution Service ,14/03/23,UK National rail travel,CFO Commercial,Clarity Travel Management,CPSHQ120323,631.40,
Crown Prosecution Service ,14/03/23,UK National rail travel,CFO Finance Operations,Clarity Travel Management,CPSHQ120323,326.90,
Crown Prosecution Service ,14/03/23,UK National rail travel,PF Resourcing,Clarity Travel Management,CPSHQ120323,"1,356.20",
Crown Prosecution Service ,14/03/23,UK National rail travel,PF HR Operations,Clarity Travel Management,CPSHQ120323,"1,388.20",
Crown Prosecution Service ,14/03/23,UK National rail travel,DID DTS Change,Clarity Travel Management,CPSHQ120323,609.30,
Crown Prosecution Service ,14/03/23,UK National rail travel,Private Office,Clarity Travel Management,CPSHQ120323,206.50,
Crown Prosecution Service ,14/03/23,UK National rail travel,Permanent Transfer Costs,Clarity Travel Management,CPSHQ120323,473.70,
Crown Prosecution Service ,14/03/23,UK National rail travel,Operational Performance,Clarity Travel Management,CPSHQ120323,724.40,
Crown Prosecution Service ,14/03/23,UK National rail travel,CFO Estates,Clarity Travel Management,CPSHQ120323,73.20,
Crown Prosecution Service ,14/03/23,UK Hotels,Court Business Unit,Clarity Travel Management,CPSHQ120323,585.28,Y
Crown Prosecution Service ,14/03/23,UK Hotels,Strategy and Policy,Clarity Travel Management,CPSHQ120323,571.38,Y
Crown Prosecution Service ,14/03/23,UK Hotels,CFO Estates,Clarity Travel Management,CPSHQ120323,72.00,Y
Crown Prosecution Service ,14/03/23,UK Hotels,PF HR Business Management,Clarity Travel Management,CPSHQ120323,141.58,Y
Crown Prosecution Service ,14/03/23,UK Hotels,PF HR Systems and Information,Clarity Travel Management,CPSHQ120323,411.00,Y
Crown Prosecution Service ,14/03/23,UK Hotels,Press Office,Clarity Travel Management,CPSHQ120323,68.01,Y
Crown Prosecution Service ,14/03/23,UK Hotels,DID DTS Change,Clarity Travel Management,CPSHQ120323,395.00,Y
Crown Prosecution Service ,14/03/23,UK Hotels,DID Central Leadership Team,Clarity Travel Management,CPSHQ120323,422.52,Y
Crown Prosecution Service ,14/03/23,UK Hotels,DTUS,Clarity Travel Management,CPSHQ120323,88.00,Y
Crown Prosecution Service ,14/03/23,UK Hotels,Compliance and Assurance,Clarity Travel Management,CPSHQ120323,234.21,Y
Crown Prosecution Service ,14/03/23,UK Hotels,Operational Business Support,Clarity Travel Management,CPSHQ120323,"3,311.11",Y
Crown Prosecution Service ,14/03/23,UK Hotels,Corporate Communication,Clarity Travel Management,CPSHQ120323,153.00,Y
Crown Prosecution Service ,14/03/23,UK Hotels,Permanent Transfer Costs,Clarity Travel Management,CPSHQ120323,529.08,Y
Crown Prosecution Service ,14/03/23,UK Hotels,DID Operational Process,Clarity Travel Management,CPSHQ120323,853.52,Y
Crown Prosecution Service ,14/03/23,UK Hotels,PF Learning and Development General,Clarity Travel Management,CPSHQ120323,279.00,Y
Crown Prosecution Service ,14/03/23,UK Hotels,DID Security and Information,Clarity Travel Management,CPSHQ120323,988.22,Y
Crown Prosecution Service ,14/03/23,UK Hotels,PF People and Business Change,Clarity Travel Management,CPSHQ120323,414.80,Y
Crown Prosecution Service ,14/03/23,UK Hotels,Central Operational Training,Clarity Travel Management,CPSHQ120323,505.41,Y
Crown Prosecution Service ,14/03/23,UK Hotels,DID DTS Technology,Clarity Travel Management,CPSHQ120323,744.41,Y
Crown Prosecution Service ,14/03/23,UK National rail travel,PF Learning and Development General,Clarity Travel Management,CPSHQ120323,"3,412.10",
Crown Prosecution Service ,14/03/23,UK National rail travel,Central Operational Training,Clarity Travel Management,CPSHQ120323,687.65,
Crown Prosecution Service ,14/03/23,UK National rail travel,PF Analytics and Workforce Plan,Clarity Travel Management,CPSHQ120323,206.90,
Crown Prosecution Service ,14/03/23,UK National rail travel,PF HR Business Management,Clarity Travel Management,CPSHQ120323,501.10,
Crown Prosecution Service ,14/03/23,UK National rail travel,CFO Strategic Financial Planning,Clarity Travel Management,CPSHQ120323,22.90,
Crown Prosecution Service ,14/03/23,UK National rail travel,Strategy and Policy,Clarity Travel Management,CPSHQ120323,"2,214.05",
Crown Prosecution Service ,14/03/23,UK National rail travel,Corporate Communication,Clarity Travel Management,CPSHQ120323,"1,179.60",
Crown Prosecution Service ,14/03/23,UK National rail travel,DID DTS Change,Clarity Travel Management,CPSHQ120323,"5,190.30",
Crown Prosecution Service ,14/03/23,UK National rail travel,PF HR Systems and Information,Clarity Travel Management,CPSHQ120323,79.60,
Crown Prosecution Service ,14/03/23,UK National rail travel,DID Operational Process,Clarity Travel Management,CPSHQ120323,"1,010.20",
Crown Prosecution Service ,14/03/23,Human Resource Consultancy Advice,PF Operational HR Costs,Ernst & Young LLP London,GB01G000397500,"96,000.00",Y
Crown Prosecution Service ,14/03/23,Crown Court Graduated Fee Scheme,London North Complex Casework Unit,5 King's Bench Walk,LO 171292,"25,580.52",Y
Crown Prosecution Service ,15/03/23,Crown Court Graduated Fee Scheme,Special Crime Unit London,6 Pump Court The Chambers of Mr Stephen Hockman,161730/MWA1,"38,550.17",Y
Crown Prosecution Service ,15/03/23,Crown Court Graduated Fee Scheme,Yorks and Humbs CC Legal,St Pauls Chambers Leeds,166311,"45,256.68",Y
Crown Prosecution Service ,15/03/23,Crown Court Very High Cost Cases Full Scheme,Cymru Wales Complex Casework Unit,Apex Chambers,45880-8/RR,"26,733.00",Y
Crown Prosecution Service ,15/03/23,Crown Court Very High Cost Cases Full Scheme,East Midlands Complex Casework Unit,Seven Bedford Row,3,"99,178.72",Y
Crown Prosecution Service ,15/03/23,Other Expert Fees,Mersey Cheshire Complex Casework Unit,Bohin Sandie Guernsey,60223,"31,800.00",
Crown Prosecution Service ,15/03/23,Crown Court Graduated Fee Scheme,London North Complex Casework Unit,QEB Hollis Whiteman Chambers,PE 112627 A,"33,531.00",Y
Crown Prosecution Service ,16/03/23,Crown Court Graduated Fee Scheme,North West Complex Casework Unit,Harrington Street Chambers,1117663/MJR,"25,143.00",
Crown Prosecution Service ,16/03/23,Crown Court Graduated Fee Scheme,London South Crown Court Unit,Foundry Chambers (9-12 Bell Yard),188973/DA,"31,209.60",Y
Crown Prosecution Service ,16/03/23,Crown Court Graduated Fee Scheme,London South Crown Court Unit,Foundry Chambers (9-12 Bell Yard),188973/ND - 6,"46,413.00",Y
Crown Prosecution Service ,16/03/23,Other Expert Fees,Mersey Cheshire Complex Casework Unit,The Medical Specialist Group St Martins,INV-0018,"43,630.00",
Crown Prosecution Service ,17/03/23,Crown Court Graduated Fee Scheme,London North Complex Casework Unit,Foundry Chambers (9-12 Bell Yard),191234/AH,"82,345.80",Y
Crown Prosecution Service ,17/03/23,Crown Court Graduated Fee Scheme,London North Complex Casework Unit,Foundry Chambers (9-12 Bell Yard),191234/HP,"46,379.20",Y
Crown Prosecution Service ,17/03/23,Crown Court Very High Cost Cases Full Scheme,SEOC Team 1,Foundry Chambers (9-12 Bell Yard),199179/MC,"46,479.00",Y
Crown Prosecution Service ,17/03/23,Crown Court Very High Cost Cases Full Scheme,SEOC Team 1,Foundry Chambers (9-12 Bell Yard),199179/PS,"25,278.00",Y
Crown Prosecution Service ,17/03/23,Crown Court Graduated Fee Scheme,West Midlands Crown Court Unit,2 Harcourt Buildings,JK/117520,"31,875.84",Y
Crown Prosecution Service ,20/03/23,Crown Court Graduated Fee Scheme,Thames Chiltern Crown Court Unit,Drystone Chambers (Dyers),195262 3 CEH,"25,356.48",Y
Crown Prosecution Service ,20/03/23,Crown Court Graduated Fee Scheme,North West Crown Court Hub,Atlantic Chambers,684259/JB,"29,991.00",Y
Crown Prosecution Service ,20/03/23,Other managed/contractor services,Central Legal Training Team,Ernst & Young LLP London,GB01G000393327,"40,464.00",Y
Crown Prosecution Service ,20/03/23,IT services,DTS Programme Project Cost,eSynergy Solutions Ltd,INV00001076,"116,691.14",Y
Crown Prosecution Service ,20/03/23,IT services,DTS Programme Project Cost,eSynergy Solutions Ltd,INV00001077,"62,232.36",Y
Crown Prosecution Service ,20/03/23,IT services,DTS Programme Project Cost,eSynergy Solutions Ltd,INV00001104,"48,331.44",Y
Crown Prosecution Service ,20/03/23,IT services,End User Computing Contract,ACS Systems UK Limited Northampton,INV428494,"545,463.67",Y
Crown Prosecution Service ,20/03/23,Crown Court Graduated Fee Scheme,London South Complex Casework Unit,Deka Chambers Ltd,JCL382236,"26,389.20",Y
Crown Prosecution Service ,20/03/23,Crown Court Graduated Fee Scheme,Thames Chiltern Crown Court Unit,2 Harcourt Buildings,JO/117223,"39,183.72",Y
Crown Prosecution Service ,20/03/23,PPE asset purchase clearing Furniture and fittings,Balance Sheet,Senator International Ltd Lancashire,S01796933,"42,432.72",Y
Crown Prosecution Service ,20/03/23,PPE asset purchase clearing Furniture and fittings,Balance Sheet,Senator International Ltd Lancashire,S01797537,"37,486.68",Y
Crown Prosecution Service ,21/03/23,PPE asset purchase clearing Furniture and fittings,Balance Sheet,Government Property Agency London,00000001/21786,"123,276.38",
Crown Prosecution Service ,21/03/23,Right of use asset clearing Buildings,Balance Sheet,Government Property Agency London,00000001/23534,"34,862.36",
Crown Prosecution Service ,21/03/23,Right of use asset clearing Buildings,Balance Sheet,Government Property Agency London,00000001/23573,"44,330.05",
Crown Prosecution Service ,21/03/23,PPE asset purchase clearing Furniture and fittings,Balance Sheet,Government Property Agency London,00000001/23575,"142,628.78",
Crown Prosecution Service ,21/03/23,Right of use asset clearing Buildings,Balance Sheet,Government Property Agency London,00000001/23579,"222,790.06",
Crown Prosecution Service ,21/03/23,PPE asset purchase clearing Furniture and fittings,Balance Sheet,Government Property Agency London,00000001/24255,"56,632.01",
Crown Prosecution Service ,21/03/23,Right of use asset clearing Buildings,Balance Sheet,Government Property Agency London,00000001/24261,"66,092.01",
Crown Prosecution Service ,21/03/23,Other managed/contractor services,DID Security and Information,Iron Mountain Ltd,0753555,"207,402.17",Y
Crown Prosecution Service ,21/03/23,Crown Court Graduated Fee Scheme,London North Complex Casework Unit,6 Kings Bench Walk- Chambers of D Fisher & D Perry,103227 JH,"41,913.00",Y
Crown Prosecution Service ,21/03/23,Advice/PreSending Very High Cost Cases Full Scheme,Mersey Cheshire Complex Casework Unit,Harrington Street Chambers,1096572/NJ38,"40,427.78",
Crown Prosecution Service ,21/03/23,Crown Court Graduated Fee Scheme,Wessex Crown Court Unit,Pump Court Chambers - 3 Pump Court,275732-EF,"40,921.80",Y
Crown Prosecution Service ,21/03/23,Crown Court Graduated Fee Scheme,SEOC Team 2,2 Kings Bench Walk London,293738-KB,"49,916.11",
Crown Prosecution Service ,21/03/23,Crown Court Graduated Fee Scheme,Special Crime Unit York,Park Square Barristers (No 6 and Sovereign merged),507046/CHKCL,"30,517.32",Y
Crown Prosecution Service ,21/03/23,Data Communications,PSN Services Contract,Lumen Technologies UK Ltd,632601875/1134723,"27,494.67",Y
Crown Prosecution Service ,21/03/23,Crown Court Graduated Fee Scheme,West Midlands Complex Casework Unit,St Philips Chambers,683998 BPC T,"40,352.16",Y
Crown Prosecution Service ,21/03/23,Crown Court Graduated Fee Scheme,West Midlands Complex Casework Unit,St Philips Chambers,683998 CRA,"26,064.36",Y
Crown Prosecution Service ,21/03/23,IT services,DTS Programme Project Cost,eSynergy Solutions Ltd,INV00001105,"138,311.92",Y
Crown Prosecution Service ,21/03/23,IT services,DTS Programme Project Cost,eSynergy Solutions Ltd,INV00001108,"40,265.16",Y
Crown Prosecution Service ,22/03/23,Recoverable VAT control,Balance Sheet,Mendip Media Group Ltd Tiverton,0000000210,"7,615.40",Y
Crown Prosecution Service ,22/03/23,Transcriptions and Translation,Other Corporate Programme Payments,Mendip Media Group Ltd Tiverton,0000000210,"38,077.00",
Crown Prosecution Service ,22/03/23,Presentational Equipment,Mersey Cheshire Complex Casework Unit,Evidential Ltd Manchester,0000000741,"45,292.80",Y
Crown Prosecution Service ,22/03/23,Presentational Equipment,Mersey Cheshire Complex Casework Unit,Evidential Ltd Manchester,0000000756,"30,336.00",Y
Crown Prosecution Service ,22/03/23,Admin agency staff,DID DTS Change,Alexander Mann Solutions Ltd London,2757419,"26,177.10",Y
Crown Prosecution Service ,22/03/23,Crown Court Graduated Fee Scheme,RWD North Unit,5 King's Bench Walk,JB175848,"40,524.72",Y
Crown Prosecution Service ,22/03/23,PPE asset purchase clearing Furniture and fittings,Balance Sheet,Senator International Ltd Lancashire,S01798201,"62,587.80",Y
Crown Prosecution Service ,23/03/23,Recoverable VAT control,Balance Sheet,Mendip Media Group Ltd Tiverton,0000000208,"4,885.60",Y
Crown Prosecution Service ,23/03/23,Transcriptions and Translation,Other Corporate Programme Payments,Mendip Media Group Ltd Tiverton,0000000208,"24,428.00",
Crown Prosecution Service ,23/03/23,Recoverable VAT control,Balance Sheet,Mendip Media Group Ltd Tiverton,0000000212,"7,155.20",Y
Crown Prosecution Service ,23/03/23,Transcriptions and Translation,Other Corporate Programme Payments,Mendip Media Group Ltd Tiverton,0000000212,"35,776.00",
Crown Prosecution Service ,23/03/23,Transcriptions and Translation,Other Corporate Programme Payments,Epiq Europe Ltd (Wordwave),0000001412,"22,109.00",
Crown Prosecution Service ,23/03/23,Recoverable VAT control,Balance Sheet,Epiq Europe Ltd (Wordwave),0000001412,"4,421.80",Y
Crown Prosecution Service ,23/03/23,Crown Court Graduated Fee Scheme,London North Complex Casework Unit,Furnival Chambers,178272/,"32,853.00",Y
Crown Prosecution Service ,23/03/23,External Training,Operational Performance,Q A Ltd Leeds,QA-SIN-000279036,"60,000.00",
Crown Prosecution Service ,23/03/23,Recoverable VAT control,Balance Sheet,Q A Ltd Leeds,QA-SIN-000279036,"12,000.00",Y
Crown Prosecution Service ,23/03/23,Crown Court Graduated Fee Scheme,RWD North Unit,5 King's Bench Walk,RK 175848,"29,767.04",Y
Crown Prosecution Service ,24/03/23,Crown Court Graduated Fee Scheme,London North Complex Casework Unit,6 Kings Bench Walk- Chambers of D Fisher & D Perry,102710 JH,"30,018.60",Y
Crown Prosecution Service ,24/03/23,Crown Court Graduated Fee Scheme,West Midlands Complex Casework Unit,6 Kings Bench Walk- Chambers of D Fisher & D Perry,104275 DEN,"39,765.60",Y
Crown Prosecution Service ,24/03/23,Crown Court Graduated Fee Scheme,London North Crown Court Unit,2 Dr Johnson's Buildings,166738shs1,"27,031.20",Y
Crown Prosecution Service ,24/03/23,Crown Court Graduated Fee Scheme,London North Complex Casework Unit,Furnival Chambers,173448/,"52,197.00",Y
Crown Prosecution Service ,24/03/23,Crown Court Graduated Fee Scheme,London North Crown Court Unit,Foundry Chambers (9-12 Bell Yard),196856/PDE - 1,"36,263.04",Y
Crown Prosecution Service ,24/03/23,Crown Court Graduated Fee Scheme,West Midlands Complex Casework Unit,No 5 Fountain Court Chambers,827140/HSS/,"25,836.00",Y
Crown Prosecution Service ,24/03/23,Crown Court Graduated Fee Scheme,West Midlands Complex Casework Unit,No 5 Fountain Court Chambers,829923/MH/,"37,650.96",Y
Crown Prosecution Service ,27/03/23,Crown Court Graduated Fee Scheme,Mersey Cheshire Crown Court Unit,Harrington Street Chambers,1175556/RP,"32,868.60",
Crown Prosecution Service ,27/03/23,Crown Court Graduated Fee Scheme,RWD Midlands Wales Unit,Red Lion Chambers (18 RLC),163921LSEtrial,"30,660.84",Y
Crown Prosecution Service ,27/03/23,UK Hotels,DID Security and Information,Clarity Travel Management,CPSHQ190323,280.00,Y
Crown Prosecution Service ,27/03/23,UK National rail travel,DID Security and Information,Clarity Travel Management,CPSHQ190323,"2,294.30",
Crown Prosecution Service ,27/03/23,UK Hotels,CFO Finance Operations,Clarity Travel Management,CPSHQ190323,68.00,Y
Crown Prosecution Service ,27/03/23,UK Hotels,Director of Legal Services,Clarity Travel Management,CPSHQ190323,148.00,Y
Crown Prosecution Service ,27/03/23,UK Hotels,CFO Strategic Financial Planning,Clarity Travel Management,CPSHQ190323,208.90,Y
Crown Prosecution Service ,27/03/23,UK Hotels,Court Business Unit,Clarity Travel Management,CPSHQ190323,505.41,Y
Crown Prosecution Service ,27/03/23,UK Hotels,PF HR Business Partnering,Clarity Travel Management,CPSHQ190323,62.59,Y
Crown Prosecution Service ,27/03/23,UK Hotels,PF HR Business Management,Clarity Travel Management,CPSHQ190323,153.86,Y
Crown Prosecution Service ,27/03/23,UK Hotels,Compliance and Assurance,Clarity Travel Management,CPSHQ190323,392.63,Y
Crown Prosecution Service ,27/03/23,UK Hotels,Strategy and Policy,Clarity Travel Management,CPSHQ190323,746.80,Y
Crown Prosecution Service ,27/03/23,UK Hotels,Press Office,Clarity Travel Management,CPSHQ190323,113.00,Y
Crown Prosecution Service ,27/03/23,UK Hotels,Operational Business Support,Clarity Travel Management,CPSHQ190323,"2,259.43",Y
Crown Prosecution Service ,27/03/23,UK Hotels,Operational Performance,Clarity Travel Management,CPSHQ190323,254.20,Y
Crown Prosecution Service ,27/03/23,UK Hotels,Private Office,Clarity Travel Management,CPSHQ190323,156.00,Y
Crown Prosecution Service ,27/03/23,UK Hotels,PF HR Systems and Information,Clarity Travel Management,CPSHQ190323,189.74,Y
Crown Prosecution Service ,27/03/23,UK Hotels,DID DTS Technology,Clarity Travel Management,CPSHQ190323,220.00,Y
Crown Prosecution Service ,27/03/23,UK Hotels,PF Learning and Development General,Clarity Travel Management,CPSHQ190323,282.50,Y
Crown Prosecution Service ,27/03/23,UK Hotels,DTUS,Clarity Travel Management,CPSHQ190323,58.79,Y
Crown Prosecution Service ,27/03/23,UK Hotels,Permanent Transfer Costs,Clarity Travel Management,CPSHQ190323,530.56,Y
Crown Prosecution Service ,27/03/23,UK Hotels,PF People and Business Change,Clarity Travel Management,CPSHQ190323,913.01,Y
Crown Prosecution Service ,27/03/23,UK Hotels,PF Analytics and Workforce Plan,Clarity Travel Management,CPSHQ190323,85.80,Y
Crown Prosecution Service ,27/03/23,UK Hotels,DID DTS Change,Clarity Travel Management,CPSHQ190323,762.75,Y
Crown Prosecution Service ,27/03/23,UK Hotels,Central Legal Training Team,Clarity Travel Management,CPSHQ190323,584.96,Y
Crown Prosecution Service ,27/03/23,UK Hotels,DID Central Leadership Team,Clarity Travel Management,CPSHQ190323,128.00,Y
Crown Prosecution Service ,27/03/23,UK National rail travel,PF People and Business Change,Clarity Travel Management,CPSHQ190323,10.00,
Crown Prosecution Service ,27/03/23,UK National rail travel,PF MAER and Employee Relations,Clarity Travel Management,CPSHQ190323,175.20,
Crown Prosecution Service ,27/03/23,UK National rail travel,CFO Estates,Clarity Travel Management,CPSHQ190323,60.80,
Crown Prosecution Service ,27/03/23,UK National rail travel,Permanent Transfer Costs,Clarity Travel Management,CPSHQ190323,"1,030.10",
Crown Prosecution Service ,27/03/23,UK National rail travel,DID Central Leadership Team,Clarity Travel Management,CPSHQ190323,"1,769.80",
Crown Prosecution Service ,27/03/23,UK National rail travel,PF Learning and Development General,Clarity Travel Management,CPSHQ190323,424.20,
Crown Prosecution Service ,27/03/23,UK National rail travel,CFO Commercial,Clarity Travel Management,CPSHQ190323,"2,308.20",
Crown Prosecution Service ,27/03/23,UK National rail travel,Private Office,Clarity Travel Management,CPSHQ190323,523.80,
Crown Prosecution Service ,27/03/23,UK National rail travel,PF Analytics and Workforce Plan,Clarity Travel Management,CPSHQ190323,602.90,
Crown Prosecution Service ,27/03/23,UK National rail travel,Strategy and Policy,Clarity Travel Management,CPSHQ190323,"2,486.80",
Crown Prosecution Service ,27/03/23,UK National rail travel,PF Disability Staff Network,Clarity Travel Management,CPSHQ190323,93.40,
Crown Prosecution Service ,27/03/23,UK National rail travel,CFO Strategic Financial Planning,Clarity Travel Management,CPSHQ190323,251.30,
Crown Prosecution Service ,27/03/23,UK National rail travel,Central Operational Training,Clarity Travel Management,CPSHQ190323,"1,838.90",
Crown Prosecution Service ,27/03/23,UK National rail travel,PF HR Business Partnering,Clarity Travel Management,CPSHQ190323,93.40,
Crown Prosecution Service ,27/03/23,UK National rail travel,PF People and Business Change,Clarity Travel Management,CPSHQ190323,"1,806.10",
Crown Prosecution Service ,27/03/23,UK National rail travel,PF HR Business Management,Clarity Travel Management,CPSHQ190323,130.80,
Crown Prosecution Service ,27/03/23,UK National rail travel,PF HR Systems and Information,Clarity Travel Management,CPSHQ190323,583.80,
Crown Prosecution Service ,27/03/23,UK National rail travel,Operational Business Support,Clarity Travel Management,CPSHQ190323,532.90,
Crown Prosecution Service ,27/03/23,UK National rail travel,Chief Finance Officer,Clarity Travel Management,CPSHQ190323,385.10,
Crown Prosecution Service ,27/03/23,UK National rail travel,PF Resourcing,Clarity Travel Management,CPSHQ190323,565.70,
Crown Prosecution Service ,27/03/23,UK National rail travel,DID Operational Process,Clarity Travel Management,CPSHQ190323,92.20,
Crown Prosecution Service ,27/03/23,UK National rail travel,CFO Financial Reporting,Clarity Travel Management,CPSHQ190323,156.50,
Crown Prosecution Service ,27/03/23,UK National rail travel,Court Business Unit,Clarity Travel Management,CPSHQ190323,240.80,
Crown Prosecution Service ,27/03/23,UK National rail travel,Press Office,Clarity Travel Management,CPSHQ190323,237.50,
Crown Prosecution Service ,27/03/23,UK National rail travel,DID DTS Change,Clarity Travel Management,CPSHQ190323,"4,737.70",
Crown Prosecution Service ,27/03/23,UK National rail travel,Operational Performance,Clarity Travel Management,CPSHQ190323,"1,279.10",
Crown Prosecution Service ,27/03/23,UK National rail travel,PF HR Business Partnering,Clarity Travel Management,CPSHQ190323,"1,844.45",
Crown Prosecution Service ,27/03/23,UK National rail travel,Corporate Communication,Clarity Travel Management,CPSHQ190323,"1,771.90",
Crown Prosecution Service ,27/03/23,UK National rail travel,PF HR Operations,Clarity Travel Management,CPSHQ190323,"1,517.00",
Crown Prosecution Service ,27/03/23,UK National rail travel,DID DTS Technology,Clarity Travel Management,CPSHQ190323,"1,222.90",
Crown Prosecution Service ,27/03/23,UK National rail travel,Central Legal Training Team,Clarity Travel Management,CPSHQ190323,"3,335.10",
Crown Prosecution Service ,27/03/23,UK National rail travel,Operational Change,Clarity Travel Management,CPSHQ190323,251.10,
Crown Prosecution Service ,27/03/23,UK Hotels,Corporate Communication,Clarity Travel Management,CPSHQ190323,401.00,Y
Crown Prosecution Service ,27/03/23,Crown Court Graduated Fee Scheme,London North Complex Casework Unit,2 Harcourt Buildings,EF/116590,"32,131.20",Y
Crown Prosecution Service ,27/03/23,Other publicity and media costs,Corporate Communication,YouGov Plc London,INV237494,"31,357.50",Y
Crown Prosecution Service ,27/03/23,Other publicity and media costs,Corporate Communication,YouGov Plc London,INV237495,"25,260.00",Y
Crown Prosecution Service ,27/03/23,Crown Court Graduated Fee Scheme,London North Complex Casework Unit,2 Harcourt Buildings,JD/116590,"64,492.20",Y
Crown Prosecution Service ,27/03/23,Crown Court Graduated Fee Scheme,London North Complex Casework Unit,QEB Hollis Whiteman Chambers,JL 113043,"36,324.00",Y
Crown Prosecution Service ,28/03/23,Printing Costs,Print Contract,Konica Minolta Business Solutions Limited,1164618765,"57,217.39",
Crown Prosecution Service ,28/03/23,Recoverable VAT control,Balance Sheet,Konica Minolta Business Solutions Limited,1164618765,"11,443.48",Y
Crown Prosecution Service ,28/03/23,IT services,DTS Programme Project Cost,Accenture (UK) Ltd London,3003598251,"116,934.00",Y
Crown Prosecution Service ,28/03/23,IT services,DTS Programme Project Cost,Accenture (UK) Ltd London,3003600759,"94,375.00",
Crown Prosecution Service ,28/03/23,Recoverable VAT control,Balance Sheet,Accenture (UK) Ltd London,3003600759,"18,875.00",Y
Crown Prosecution Service ,28/03/23,Crown Court Graduated Fee Scheme,RWD North Unit,Exchange Chambers - Liverpool,562758 - CS claim 9,"26,352.60",Y
Crown Prosecution Service ,28/03/23,Recoverable VAT control,Balance Sheet,Konica Minolta Business Solutions Limited,Bulk202302,"23,392.44",Y
Crown Prosecution Service ,28/03/23,Variable lease payment expenses IT and Equipment,Print Contract,Konica Minolta Business Solutions Limited,Bulk202302,"116,962.19",
Crown Prosecution Service ,28/03/23,IT services,DTS Programme Project Cost,Mobilise Cloud Services Limited London,CPSINV058,"97,795.20",Y
Crown Prosecution Service ,28/03/23,Recoverable VAT control,Balance Sheet,Konica Minolta Business Solutions Limited,Fleet202302,"16,844.33",Y
Crown Prosecution Service ,28/03/23,Variable lease payment expenses IT and Equipment,Print Contract,Konica Minolta Business Solutions Limited,Fleet202302,"84,221.64",
Crown Prosecution Service ,28/03/23,Professional subscriptions and memberships,Practising Certificates,General Council Of The Bar,INV-72215-J7J0B1,"269,052.00",
Crown Prosecution Service ,28/03/23,IT services,DTS Programme Project Cost,ACS Systems UK Limited Northampton,INV425510,"115,161.30",Y
Crown Prosecution Service ,28/03/23,IT services,End User Computing Contract,ACS Systems UK Limited Northampton,INV425511,"29,009.70",Y
Crown Prosecution Service ,28/03/23,IT services,DTS Programme Project Cost,ACS Systems UK Limited Northampton,INV428751,"52,954.80",Y
Crown Prosecution Service ,28/03/23,IT services,DTS Programme Project Cost,ACS Systems UK Limited Northampton,INV428810,"72,952.74",Y
Crown Prosecution Service ,28/03/23,IT services,End User Computing Contract,ACS Systems UK Limited Northampton,INV428848,"28,378.80",Y
Crown Prosecution Service ,28/03/23,IT services,DTS Programme Project Cost,ACS Systems UK Limited Northampton,INV428849,"69,977.40",Y
Crown Prosecution Service ,29/03/23,External legal advice - HR casework,PF People and Business Change,Government Legal Department,524042,"39,633.91",Y
Crown Prosecution Service ,30/03/23,Legal Claims Provision utilised in the year,Balance Sheet,,927701398,"135,862.73",
Crown Prosecution Service ,31/03/23,Intangibles asset purchase clearing CMS,DTS ICT Capital Expenditure,CGI IT UK Ltd,GB014101274,"696,608.02",
Crown Prosecution Service ,31/03/23,Recoverable VAT control,Balance Sheet,CGI IT UK Ltd,GB014101274,"139,321.60",Y
